[Event "Titled Tuesday Blitz October 31 Late 2023"]
[White "Alfaro, William"]
[Black "Mushini Ajay"]
[WhiteFideId "6100457"]
[BlackFideId "35066188"]
[WhiteElo "2192"]
[BlackElo "2408"]
[Result "0-1"]
[Round "5"]
[TimeControl "180+1"]
[Date "2023.10.31"]
[WhiteClock "0:00:00"]
[BlackClock "0:00:15"]
[Board "125"]

1. e4 {[%clk 0:03:00]}  c6 {[%clk 0:03:00]} 2. d4 {[%clk 0:03:00]}  d5 {[%clk 0:03:01]} 3. exd5 {[%clk 0:03:00]}  cxd5 {[%clk 0:03:02]} 4. c4 {[%clk 0:03:01]}  Nf6 {[%clk 0:03:01]} 5. Nc3 {[%clk 0:03:01]}  Nc6 {[%clk 0:03:01]} 6. Nf3 {[%clk 0:03:02]}  g6 {[%clk 0:03:01]} 7. cxd5 {[%clk 0:02:56]}  Nxd5 {[%clk 0:03:00]} 8. Bc4 {[%clk 0:02:56]}  Nxc3 {[%clk 0:03:00]} 9. bxc3 {[%clk 0:02:56]}  Bg7 {[%clk 0:02:59]} 10. O-O {[%clk 0:02:55]}  O-O {[%clk 0:02:58]} 11. h3 {[%clk 0:02:51]}  Qc7 {[%clk 0:02:57]} 12. Bb3 {[%clk 0:02:45]}  Bf5 {[%clk 0:02:54]} 13. Ba3 {[%clk 0:02:25]}  Rfd8 {[%clk 0:02:46]} 14. Re1 {[%clk 0:02:24]}  e5 {[%clk 0:02:42]} 15. d5 {[%clk 0:02:16]}  e4 {[%clk 0:02:42]} 16. Nd4 {[%clk 0:01:57]}  Nxd4 {[%clk 0:02:31]} 17. cxd4 {[%clk 0:01:58]}  Qa5 {[%clk 0:02:16]} 18. Be7 {[%clk 0:01:43]}  Rxd5 {[%clk 0:02:13]} 19. Bxd5 {[%clk 0:01:42]}  Qxd5 {[%clk 0:02:14]} 20. Qb3 {[%clk 0:01:13]}  Qxb3 {[%clk 0:01:59]} 21. axb3 {[%clk 0:01:14]}  Bxd4 {[%clk 0:01:59]} 22. Ra4 {[%clk 0:01:14]}  Bb6 {[%clk 0:01:53]} 23. Bf6 {[%clk 0:01:02]}  Bd7 {[%clk 0:01:34]} 24. Raxe4 {[%clk 0:00:57]}  Be6 {[%clk 0:01:31]} 25. b4 {[%clk 0:00:56]}  Rc8 {[%clk 0:01:26]} 26. Bd4 {[%clk 0:00:56]}  Bd8 {[%clk 0:01:18]} 27. Bxa7 {[%clk 0:00:51]}  b6 {[%clk 0:01:18]} 28. Rxe6 {[%clk 0:00:43]}  fxe6 {[%clk 0:01:19]} 29. Rxe6 {[%clk 0:00:43]}  Kf7 {[%clk 0:01:10]} 30. Re2 {[%clk 0:00:23]}  Ra8 {[%clk 0:00:49]} 31. Ra2 {[%clk 0:00:19]}  Bc7 {[%clk 0:00:42]} 32. Ra6 {[%clk 0:00:15]}  Bb8 {[%clk 0:00:41]} 33. Rxb6 {[%clk 0:00:15]}  Bxa7 {[%clk 0:00:37]} 34. Rb7+ {[%clk 0:00:14]}  Kg8 {[%clk 0:00:36]} 35. g3 {[%clk 0:00:15]}  Bd4 {[%clk 0:00:36]} 36. Kg2 {[%clk 0:00:15]}  Ra2 {[%clk 0:00:34]} 37. Kf3 {[%clk 0:00:15]}  Rxf2+ {[%clk 0:00:34]} 38. Ke4 {[%clk 0:00:16]}  Bg7 {[%clk 0:00:33]} 39. b5 {[%clk 0:00:16]}  Rb2 {[%clk 0:00:32]} 40. Rb8+ {[%clk 0:00:15]}  Kf7 {[%clk 0:00:30]} 41. Rb7+ {[%clk 0:00:14]}  Kg8 {[%clk 0:00:29]} 42. Rb8+ {[%clk 0:00:14]}  Kf7 {[%clk 0:00:28]} 43. Rb7+ {[%clk 0:00:15]}  Kf6 {[%clk 0:00:25]} 44. Rb6+ {[%clk 0:00:14]}  Kg5 {[%clk 0:00:24]} 45. Rb7 {[%clk 0:00:14]}  Kh6 {[%clk 0:00:22]} 46. Kd5 {[%clk 0:00:07]}  Rb3 {[%clk 0:00:20]} 47. Kc6 {[%clk 0:00:06]}  Rxg3 {[%clk 0:00:20]} 48. b6 {[%clk 0:00:05]}  Rb3 {[%clk 0:00:20]} 49. Rd7 {[%clk 0:00:05]}  Be5 {[%clk 0:00:18]} 50. Re7 {[%clk 0:00:05]}  Bh2 {[%clk 0:00:17]} 51. Re2 {[%clk 0:00:03]}  Bf4 {[%clk 0:00:17]} 52. Re4 {[%clk 0:00:03]}  g5 {[%clk 0:00:16]} 53. Kb7 {[%clk 0:00:02]}  Kh5 {[%clk 0:00:16]} 54. Ka7 {[%clk 0:00:02]}  Kh4 {[%clk 0:00:16]} 55. b7 {[%clk 0:00:02]}  h5 {[%clk 0:00:16]} 56. Ka8 {[%clk 0:00:01]}  Kxh3 {[%clk 0:00:15]} 57. Ka7 {[%clk 0:00:00]}  h4 {[%clk 0:00:15]} 0-1


[Site "https://www.chess.com"]

[Event "Titled Tuesday Blitz October 31 Late 2023"]
[White "VitaliyChayka"]
[Black "Friedland, Moshe"]
[BlackFideId "2812843"]
[WhiteElo "2154"]
[BlackElo "2396"]
[Result "0-1"]
[Round "5"]
[TimeControl "180+1"]
[Date "2023.10.31"]
[WhiteClock "0:00:09"]
[BlackClock "0:00:16"]
[Board "127"]

1. d4 {[%clk 0:02:59]}  Nf6 {[%clk 0:02:59]} 2. Bf4 {[%clk 0:02:57]}  c5 {[%clk 0:02:58]} 3. e3 {[%clk 0:02:57]}  Qb6 {[%clk 0:02:56]} 4. Nc3 {[%clk 0:02:56]}  cxd4 {[%clk 0:02:54]} 5. exd4 {[%clk 0:02:55]}  e6 {[%clk 0:02:49]} 6. a3 {[%clk 0:02:42]}  Nc6 {[%clk 0:02:36]} 7. Nf3 {[%clk 0:02:41]}  a6 {[%clk 0:02:31]} 8. Be2 {[%clk 0:02:30]}  d5 {[%clk 0:02:30]} 9. O-O {[%clk 0:02:26]}  Bd7 {[%clk 0:02:30]} 10. h3 {[%clk 0:02:23]}  Rc8 {[%clk 0:02:28]} 11. Na4 {[%clk 0:01:54]}  Qa5 {[%clk 0:02:21]} 12. Nc3 {[%clk 0:01:53]}  Be7 {[%clk 0:02:13]} 13. b4 {[%clk 0:01:49]}  Qd8 {[%clk 0:02:09]} 14. Qd3 {[%clk 0:01:40]}  O-O {[%clk 0:02:00]} 15. Rfe1 {[%clk 0:01:32]}  Na7 {[%clk 0:01:59]} 16. Ne5 {[%clk 0:01:27]}  Be8 {[%clk 0:01:43]} 17. Bf3 {[%clk 0:01:16]}  Nb5 {[%clk 0:01:40]} 18. Ne2 {[%clk 0:01:12]}  Nd6 {[%clk 0:01:35]} 19. Ng3 {[%clk 0:01:08]}  Bb5 {[%clk 0:01:24]} 20. Qd1 {[%clk 0:01:03]}  Nc4 {[%clk 0:01:17]} 21. Nxc4 {[%clk 0:00:57]}  Bxc4 {[%clk 0:01:18]} 22. Be5 {[%clk 0:00:53]}  Qd7 {[%clk 0:01:08]} 23. Re3 {[%clk 0:00:52]}  Qa4 {[%clk 0:01:01]} 24. Rc3 {[%clk 0:00:45]}  Nd7 {[%clk 0:00:59]} 25. Bf4 {[%clk 0:00:40]}  Bb5 {[%clk 0:00:58]} 26. Qd2 {[%clk 0:00:37]}  Nb6 {[%clk 0:00:53]} 27. Nh5 {[%clk 0:00:27]}  Rxc3 {[%clk 0:00:49]} 28. Qxc3 {[%clk 0:00:21]}  Rc8 {[%clk 0:00:49]} 29. Qe3 {[%clk 0:00:21]}  Qxc2 {[%clk 0:00:43]} 30. Bg5 {[%clk 0:00:17]}  Bf8 {[%clk 0:00:40]} 31. Kh2 {[%clk 0:00:15]}  Qd3 {[%clk 0:00:29]} 32. Qf4 {[%clk 0:00:13]}  Nc4 {[%clk 0:00:22]} 33. Re1 {[%clk 0:00:11]}  Bd6 {[%clk 0:00:21]} 34. Re3 {[%clk 0:00:06]}  Bxf4+ {[%clk 0:00:18]} 35. Bxf4 {[%clk 0:00:07]}  Nxe3 {[%clk 0:00:18]} 36. Bxe3 {[%clk 0:00:06]}  Qxa3 {[%clk 0:00:18]} 37. Ng3 {[%clk 0:00:05]}  Qxb4 {[%clk 0:00:17]} 38. h4 {[%clk 0:00:05]}  a5 {[%clk 0:00:17]} 39. Kh3 {[%clk 0:00:06]}  a4 {[%clk 0:00:17]} 40. Bg4 {[%clk 0:00:07]}  a3 {[%clk 0:00:17]} 41. Bf3 {[%clk 0:00:08]}  a2 {[%clk 0:00:17]} 42. Bg4 {[%clk 0:00:09]}  a1=Q {[%clk 0:00:17]} 43. Bf3 {[%clk 0:00:09]}  Qac3 {[%clk 0:00:16]} 0-1


[Site "https://www.chess.com"]

[Event "Titled Tuesday Blitz October 31 Late 2023"]
[White "Freeeeeeeeeeeeeeeeee"]
[Black "FuenfgegenWilly"]
[WhiteElo "2037"]
[BlackElo "2394"]
[Result "1/2-1/2"]
[Round "5"]
[TimeControl "180+1"]
[Date "2023.10.31"]
[WhiteClock "0:00:20"]
[BlackClock "0:00:04"]
[Board "128"]

1. e4 {[%clk 0:02:58]}  Na6 {[%clk 0:03:00]} 2. Na3 {[%clk 0:02:56]}  Nh6 {[%clk 0:02:56]} 3. Nh3 {[%clk 0:02:49]}  g6 {[%clk 0:02:47]} 4. g3 {[%clk 0:02:47]}  d5 {[%clk 0:02:44]} 5. e5 {[%clk 0:02:47]}  Bg7 {[%clk 0:02:41]} 6. d4 {[%clk 0:02:45]}  c5 {[%clk 0:02:40]} 7. c3 {[%clk 0:02:43]}  O-O {[%clk 0:02:29]} 8. Bg2 {[%clk 0:02:30]}  f6 {[%clk 0:02:26]} 9. O-O {[%clk 0:02:20]}  Nc7 {[%clk 0:02:07]} 10. f4 {[%clk 0:02:12]}  Bxh3 {[%clk 0:01:58]} 11. Bxh3 {[%clk 0:02:12]}  f5 {[%clk 0:01:56]} 12. dxc5 {[%clk 0:02:09]}  Qd7 {[%clk 0:01:49]} 13. Be3 {[%clk 0:02:06]}  Nf7 {[%clk 0:01:48]} 14. Nc2 {[%clk 0:02:00]}  Nd8 {[%clk 0:01:46]} 15. b4 {[%clk 0:01:56]}  Nde6 {[%clk 0:01:42]} 16. Bg2 {[%clk 0:01:54]}  Rfd8 {[%clk 0:01:41]} 17. Nd4 {[%clk 0:01:54]}  Nxd4 {[%clk 0:01:33]} 18. cxd4 {[%clk 0:01:54]}  e6 {[%clk 0:01:30]} 19. a4 {[%clk 0:01:53]}  Bf8 {[%clk 0:01:27]} 20. Qd3 {[%clk 0:01:41]}  Rdc8 {[%clk 0:01:26]} 21. Rfc1 {[%clk 0:01:41]}  Ne8 {[%clk 0:01:24]} 22. b5 {[%clk 0:01:40]}  Rc7 {[%clk 0:01:22]} 23. h3 {[%clk 0:01:35]}  a6 {[%clk 0:01:17]} 24. b6 {[%clk 0:01:27]}  Rc6 {[%clk 0:01:08]} 25. a5 {[%clk 0:01:26]}  h6 {[%clk 0:01:05]} 26. Bf3 {[%clk 0:01:27]}  Kf7 {[%clk 0:01:04]} 27. Bd1 {[%clk 0:01:26]}  Ng7 {[%clk 0:01:00]} 28. Ba4 {[%clk 0:01:26]}  Be7 {[%clk 0:01:01]} 29. Bxc6 {[%clk 0:01:26]}  Qxc6 {[%clk 0:01:01]} 30. Qd1 {[%clk 0:01:25]}  Ke8 {[%clk 0:00:57]} 31. Qa4 {[%clk 0:01:25]}  Kd7 {[%clk 0:00:57]} 32. Qxc6+ {[%clk 0:01:25]}  Kxc6 {[%clk 0:00:58]} 33. Kf2 {[%clk 0:01:26]}  Rh8 {[%clk 0:00:58]} 34. Rg1 {[%clk 0:01:20]}  h5 {[%clk 0:00:56]} 35. Rg2 {[%clk 0:01:14]}  Kb5 {[%clk 0:00:55]} 36. c6 {[%clk 0:01:11]}  bxc6 {[%clk 0:00:43]} 37. Kf3 {[%clk 0:01:01]}  c5 {[%clk 0:00:41]} 38. Rb2+ {[%clk 0:01:00]}  Kc6 {[%clk 0:00:36]} 39. dxc5 {[%clk 0:00:51]}  Rb8 {[%clk 0:00:29]} 40. Rab1 {[%clk 0:00:48]}  Rb7 {[%clk 0:00:29]} 41. g4 {[%clk 0:00:47]}  fxg4+ {[%clk 0:00:28]} 42. hxg4 {[%clk 0:00:47]}  hxg4+ {[%clk 0:00:29]} 43. Kxg4 {[%clk 0:00:48]}  Nf5 {[%clk 0:00:30]} 44. Bf2 {[%clk 0:00:48]}  d4 {[%clk 0:00:27]} 45. Rc1 {[%clk 0:00:45]}  Rb8 {[%clk 0:00:20]} 46. Kf3 {[%clk 0:00:43]}  Rb7 {[%clk 0:00:19]} 47. Ke4 {[%clk 0:00:41]}  Bd8 {[%clk 0:00:14]} 48. Bxd4 {[%clk 0:00:41]}  Rd7 {[%clk 0:00:13]} 49. Rc4 {[%clk 0:00:37]}  Ng3+ {[%clk 0:00:11]} 50. Kf3 {[%clk 0:00:38]}  Nf5 {[%clk 0:00:11]} 51. Bf2 {[%clk 0:00:38]}  Rd3+ {[%clk 0:00:11]} 52. Kg2 {[%clk 0:00:37]}  Rd7 {[%clk 0:00:11]} 53. b7 {[%clk 0:00:38]}  Rxb7 {[%clk 0:00:10]} 54. Rxb7 {[%clk 0:00:38]}  Kxb7 {[%clk 0:00:11]} 55. c6+ {[%clk 0:00:39]}  Kc8 {[%clk 0:00:10]} 56. Bb6 {[%clk 0:00:40]}  Be7 {[%clk 0:00:10]} 57. c7 {[%clk 0:00:39]}  g5 {[%clk 0:00:09]} 58. fxg5 {[%clk 0:00:39]}  Bxg5 {[%clk 0:00:10]} 59. Rg4 {[%clk 0:00:37]}  Ne3+ {[%clk 0:00:07]} 60. Bxe3 {[%clk 0:00:36]}  Bxe3 {[%clk 0:00:08]} 61. Rg7 {[%clk 0:00:36]}  Bd4 {[%clk 0:00:07]} 62. Re7 {[%clk 0:00:32]}  Bxe5 {[%clk 0:00:07]} 63. Rxe6 {[%clk 0:00:32]}  Bxc7 {[%clk 0:00:06]} 64. Rxa6 {[%clk 0:00:33]}  Kb7 {[%clk 0:00:07]} 65. Rh6 {[%clk 0:00:31]}  Bxa5 {[%clk 0:00:07]} 66. Kf3 {[%clk 0:00:31]}  Bc7 {[%clk 0:00:07]} 67. Ke4 {[%clk 0:00:32]}  Ka8 {[%clk 0:00:07]} 68. Kd5 {[%clk 0:00:28]}  Bb8 {[%clk 0:00:08]} 69. Kc6 {[%clk 0:00:29]}  Bf4 {[%clk 0:00:07]} 70. Rh7 {[%clk 0:00:26]}  Bg3 {[%clk 0:00:03]} 71. Rf7 {[%clk 0:00:22]}  Bh2 {[%clk 0:00:02]} 72. Rf1 {[%clk 0:00:19]}  Ka7 {[%clk 0:00:02]} 73. Ra1+ {[%clk 0:00:17]}  Kb8 {[%clk 0:00:02]} 74. Rb1+ {[%clk 0:00:17]}  Ka7 {[%clk 0:00:02]} 75. Rh1 {[%clk 0:00:18]}  Bg3 {[%clk 0:00:02]} 76. Rh7+ {[%clk 0:00:18]}  Ka8 {[%clk 0:00:02]} 77. Rh3 {[%clk 0:00:19]}  Bf4 {[%clk 0:00:02]} 78. Rf3 {[%clk 0:00:19]}  Be5 {[%clk 0:00:03]} 79. Kb6 {[%clk 0:00:19]}  Bd4+ {[%clk 0:00:02]} 80. Kc6 {[%clk 0:00:20]}  Be5 {[%clk 0:00:03]} 81. Re3 {[%clk 0:00:20]}  Bd4 {[%clk 0:00:03]} 82. Re7 {[%clk 0:00:20]}  Bf2 {[%clk 0:00:03]} 83. Rd7 {[%clk 0:00:21]}  Bg1 {[%clk 0:00:02]} 84. Kb5 {[%clk 0:00:21]}  Bf2 {[%clk 0:00:02]} 85. Ka6 {[%clk 0:00:20]}  Kb8 {[%clk 0:00:02]} 86. Rf7 {[%clk 0:00:21]}  Be3 {[%clk 0:00:01]} 87. Kb5 {[%clk 0:00:21]}  Bd4 {[%clk 0:00:01]} 88. Rf4 {[%clk 0:00:19]}  Be3 {[%clk 0:00:02]} 89. Re4 {[%clk 0:00:19]}  Bf2 {[%clk 0:00:02]} 90. Kc6 {[%clk 0:00:20]}  Ka7 {[%clk 0:00:03]} 91. Ra4+ {[%clk 0:00:20]}  Kb8 {[%clk 0:00:03]} 92. Rf4 {[%clk 0:00:20]}  Be3 {[%clk 0:00:03]} 93. Rf8+ {[%clk 0:00:21]}  Ka7 {[%clk 0:00:03]} 94. Re8 {[%clk 0:00:22]}  Bf2 {[%clk 0:00:03]} 95. Re2 {[%clk 0:00:21]}  Bg1 {[%clk 0:00:03]} 96. Kc7 {[%clk 0:00:22]}  Ka6 {[%clk 0:00:02]} 97. Kc6 {[%clk 0:00:21]}  Ka7 {[%clk 0:00:03]} 98. Ra2+ {[%clk 0:00:21]}  Kb8 {[%clk 0:00:03]} 99. Rb2+ {[%clk 0:00:22]}  Ka7 {[%clk 0:00:04]} 100. Kb5 {[%clk 0:00:21]}  Kb7 {[%clk 0:00:03]} 101. Kc4+ {[%clk 0:00:21]}  Ka8 {[%clk 0:00:03]} 102. Kd5 {[%clk 0:00:21]}  Be3 {[%clk 0:00:03]} 103. Kd6 {[%clk 0:00:19]}  Ka7 {[%clk 0:00:02]} 104. Re2 {[%clk 0:00:18]}  Bd4 {[%clk 0:00:02]} 105. Kd5 {[%clk 0:00:18]}  Bg1 {[%clk 0:00:02]} 106. Kc6 {[%clk 0:00:18]}  Bd4 {[%clk 0:00:02]} 107. Kc7 {[%clk 0:00:18]}  Bb6+ {[%clk 0:00:02]} 108. Kc6 {[%clk 0:00:17]}  Bd4 {[%clk 0:00:03]} 109. Ra2+ {[%clk 0:00:17]}  Kb8 {[%clk 0:00:03]} 110. Rd2 {[%clk 0:00:17]}  Be3 {[%clk 0:00:03]} 111. Rd7 {[%clk 0:00:18]}  Bf2 {[%clk 0:00:03]} 112. Rb7+ {[%clk 0:00:18]}  Ka8 {[%clk 0:00:03]} 113. Rf7 {[%clk 0:00:19]}  Be3 {[%clk 0:00:04]} 114. Rf8+ {[%clk 0:00:19]}  Ka7 {[%clk 0:00:04]} 115. Rf3 {[%clk 0:00:20]}  Bd4 {[%clk 0:00:04]} 1/2-1/2


[Site "https://www.chess.com"]

[Event "Titled Tuesday Blitz October 31 Late 2023"]
[White "nicholas_ilic"]
[Black "Vargas, Mauricio"]
[BlackFideId "4404572"]
[WhiteElo "2392"]
[BlackElo "1854"]
[Result "1-0"]
[Round "5"]
[TimeControl "180+1"]
[Date "2023.10.31"]
[WhiteClock "0:00:57"]
[BlackClock "0:00:00"]
[Board "130"]

1. e4 {[%clk 0:03:00]}  c6 {[%clk 0:02:52]} 2. d4 {[%clk 0:02:58]}  d5 {[%clk 0:02:52]} 3. e5 {[%clk 0:02:58]}  Bf5 {[%clk 0:02:52]} 4. h4 {[%clk 0:02:54]}  h6 {[%clk 0:02:50]} 5. g4 {[%clk 0:02:46]}  Be4 {[%clk 0:02:47]} 6. f3 {[%clk 0:02:45]}  Bh7 {[%clk 0:02:44]} 7. e6 {[%clk 0:02:35]}  Qd6 {[%clk 0:02:42]} 8. exf7+ {[%clk 0:02:33]}  Kxf7 {[%clk 0:02:42]} 9. Kf2 {[%clk 0:02:30]}  e5 {[%clk 0:02:35]} 10. c3 {[%clk 0:02:27]}  exd4 {[%clk 0:02:28]} 11. cxd4 {[%clk 0:02:26]}  Nd7 {[%clk 0:02:20]} 12. Nh3 {[%clk 0:02:24]}  c5 {[%clk 0:02:17]} 13. Nc3 {[%clk 0:01:56]}  cxd4 {[%clk 0:02:16]} 14. Bf4 {[%clk 0:01:46]}  Qb6 {[%clk 0:02:07]} 15. Nxd5 {[%clk 0:01:42]}  Qxb2+ {[%clk 0:02:01]} 16. Kg3 {[%clk 0:01:41]}  b6 {[%clk 0:01:48]} 17. Bc4 {[%clk 0:01:38]}  Rc8 {[%clk 0:00:46]} 18. Nc7+ {[%clk 0:01:24]}  Ke7 {[%clk 0:00:22]} 19. Re1+ {[%clk 0:01:18]}  Kf6 {[%clk 0:00:16]} 20. Re6+ {[%clk 0:01:07]}  Kf7 {[%clk 0:00:14]} 21. Re2+ {[%clk 0:01:07]}  Kf6 {[%clk 0:00:10]} 22. Rxb2 {[%clk 0:01:07]}  Ne7 {[%clk 0:00:04]} 23. g5+ {[%clk 0:01:02]}  hxg5 {[%clk 0:00:02]} 24. Bxg5+ {[%clk 0:01:01]}  Kg6 {[%clk 0:00:00]} 25. Qd3+ {[%clk 0:00:57]} 1-0


[Site "https://www.chess.com"]

[Event "Titled Tuesday Blitz October 31 Late 2023"]
[White "Todorovic, Bojan"]
[Black "Burke, Paul"]
[WhiteFideId "917087"]
[BlackFideId "2605767"]
[WhiteElo "2389"]
[BlackElo "1889"]
[Result "1-0"]
[Round "5"]
[TimeControl "180+1"]
[Date "2023.10.31"]
[WhiteClock "0:01:43"]
[BlackClock "0:01:21"]
[Board "131"]

1. d4 {[%clk 0:02:58]}  a6 {[%clk 0:02:50]} 2. e4 {[%clk 0:02:57]}  d6 {[%clk 0:02:49]} 3. Be3 {[%clk 0:02:48]}  g6 {[%clk 0:02:50]} 4. Qd2 {[%clk 0:02:43]}  h6 {[%clk 0:02:50]} 5. Nc3 {[%clk 0:02:41]}  Bg7 {[%clk 0:02:50]} 6. h3 {[%clk 0:02:34]}  Nd7 {[%clk 0:02:49]} 7. Nf3 {[%clk 0:02:33]}  e5 {[%clk 0:02:49]} 8. Bc4 {[%clk 0:02:30]}  Ne7 {[%clk 0:02:40]} 9. O-O {[%clk 0:02:25]}  b5 {[%clk 0:02:33]} 10. Bb3 {[%clk 0:02:24]}  b4 {[%clk 0:02:31]} 11. Nd5 {[%clk 0:02:20]}  c6 {[%clk 0:02:19]} 12. Nxb4 {[%clk 0:02:11]}  a5 {[%clk 0:02:13]} 13. Nd3 {[%clk 0:02:03]}  a4 {[%clk 0:02:01]} 14. Bc4 {[%clk 0:02:02]}  Nb6 {[%clk 0:02:00]} 15. Qc3 {[%clk 0:01:56]}  Nxc4 {[%clk 0:01:56]} 16. Qxc4 {[%clk 0:01:55]}  O-O {[%clk 0:01:53]} 17. dxe5 {[%clk 0:01:53]}  Be6 {[%clk 0:01:48]} 18. Qd4 {[%clk 0:01:44]}  c5 {[%clk 0:01:21]} 19. Qxd6 {[%clk 0:01:43]} 1-0


[Site "https://www.chess.com"]

[Event "Titled Tuesday Blitz October 31 Late 2023"]
[White "Kawuma, Patrick"]
[Black "KorolDimitriy75"]
[WhiteFideId "10000127"]
[WhiteElo "2381"]
[BlackElo "2346"]
[Result "1-0"]
[Round "5"]
[TimeControl "180+1"]
[Date "2023.10.31"]
[WhiteClock "0:00:04"]
[BlackClock "0:00:00"]
[Board "132"]

1. Nf3 {[%clk 0:02:59]}  c5 {[%clk 0:03:00]} 2. c4 {[%clk 0:02:56]}  g6 {[%clk 0:03:00]} 3. Nc3 {[%clk 0:02:55]}  Bg7 {[%clk 0:03:00]} 4. d4 {[%clk 0:02:56]}  cxd4 {[%clk 0:03:01]} 5. Nxd4 {[%clk 0:02:57]}  Nc6 {[%clk 0:03:02]} 6. Nf3 {[%clk 0:02:55]}  Nf6 {[%clk 0:03:01]} 7. e4 {[%clk 0:02:55]}  O-O {[%clk 0:03:02]} 8. Be2 {[%clk 0:02:55]}  d6 {[%clk 0:03:02]} 9. O-O {[%clk 0:02:54]}  Be6 {[%clk 0:02:51]} 10. Bd2 {[%clk 0:02:39]}  Rc8 {[%clk 0:02:49]} 11. Rc1 {[%clk 0:02:38]}  a6 {[%clk 0:02:42]} 12. h3 {[%clk 0:02:35]}  h6 {[%clk 0:02:41]} 13. Be3 {[%clk 0:02:33]}  Kh7 {[%clk 0:02:39]} 14. Qd2 {[%clk 0:02:25]}  Qa5 {[%clk 0:02:39]} 15. Rfd1 {[%clk 0:02:23]}  Rfe8 {[%clk 0:02:35]} 16. Qd3 {[%clk 0:01:45]}  Nd7 {[%clk 0:02:30]} 17. Qb1 {[%clk 0:01:45]}  Nde5 {[%clk 0:02:15]} 18. Nd2 {[%clk 0:01:35]}  f5 {[%clk 0:02:02]} 19. Nb3 {[%clk 0:01:22]}  Qb4 {[%clk 0:01:49]} 20. Nd5 {[%clk 0:01:22]}  Bxd5 {[%clk 0:01:23]} 21. cxd5 {[%clk 0:01:22]}  f4 {[%clk 0:01:04]} 22. Bd2 {[%clk 0:01:18]}  Qa4 {[%clk 0:00:58]} 23. dxc6 {[%clk 0:01:17]}  bxc6 {[%clk 0:00:56]} 24. Bxf4 {[%clk 0:01:17]}  Rf8 {[%clk 0:00:55]} 25. Be3 {[%clk 0:01:16]}  c5 {[%clk 0:00:55]} 26. Nd2 {[%clk 0:00:55]}  Nc6 {[%clk 0:00:51]} 27. Nc4 {[%clk 0:00:50]}  Nd4 {[%clk 0:00:48]} 28. Bxd4 {[%clk 0:00:47]}  Bxd4 {[%clk 0:00:49]} 29. Rf1 {[%clk 0:00:41]}  Qc6 {[%clk 0:00:43]} 30. b3 {[%clk 0:00:39]}  Rf6 {[%clk 0:00:37]} 31. Qd3 {[%clk 0:00:36]}  Rcf8 {[%clk 0:00:37]} 32. Bf3 {[%clk 0:00:36]}  e5 {[%clk 0:00:37]} 33. Ne3 {[%clk 0:00:30]}  Qd7 {[%clk 0:00:25]} 34. Ng4 {[%clk 0:00:18]}  Rf4 {[%clk 0:00:23]} 35. Be2 {[%clk 0:00:16]}  h5 {[%clk 0:00:23]} 36. Ne3 {[%clk 0:00:15]}  Qe6 {[%clk 0:00:20]} 37. Rcd1 {[%clk 0:00:15]}  Qf6 {[%clk 0:00:19]} 38. f3 {[%clk 0:00:13]}  Qh4 {[%clk 0:00:18]} 39. Kh2 {[%clk 0:00:12]}  Qg5 {[%clk 0:00:17]} 40. Nd5 {[%clk 0:00:12]}  R4f7 {[%clk 0:00:17]} 41. Qd2 {[%clk 0:00:12]}  Qh4 {[%clk 0:00:17]} 42. Qe1 {[%clk 0:00:12]}  Qg5 {[%clk 0:00:17]} 43. Qg3 {[%clk 0:00:12]}  Qh6 {[%clk 0:00:17]} 44. Bc4 {[%clk 0:00:12]}  Kh8 {[%clk 0:00:16]} 45. Rde1 {[%clk 0:00:09]}  Kh7 {[%clk 0:00:15]} 46. Re2 {[%clk 0:00:08]}  Kh8 {[%clk 0:00:15]} 47. Bxa6 {[%clk 0:00:08]}  Kh7 {[%clk 0:00:12]} 48. Bc4 {[%clk 0:00:09]}  Kh8 {[%clk 0:00:12]} 49. a4 {[%clk 0:00:09]}  Kh7 {[%clk 0:00:12]} 50. a5 {[%clk 0:00:10]}  Kh8 {[%clk 0:00:11]} 51. a6 {[%clk 0:00:10]}  Kh7 {[%clk 0:00:11]} 52. Qe1 {[%clk 0:00:09]}  Qg5 {[%clk 0:00:10]} 53. Qg3 {[%clk 0:00:08]}  Qh6 {[%clk 0:00:10]} 54. Rc2 {[%clk 0:00:06]}  Kh8 {[%clk 0:00:09]} 55. Nc3 {[%clk 0:00:07]}  Be3 {[%clk 0:00:09]} 56. Ne2 {[%clk 0:00:06]}  Kh7 {[%clk 0:00:07]} 57. Rc3 {[%clk 0:00:06]}  Rg7 {[%clk 0:00:06]} 58. Rxe3 {[%clk 0:00:06]}  Qxe3 {[%clk 0:00:07]} 59. Qf2 {[%clk 0:00:05]}  Qg5 {[%clk 0:00:07]} 60. Ra1 {[%clk 0:00:04]}  Kh6 {[%clk 0:00:06]} 61. a7 {[%clk 0:00:04]}  Rgg8 {[%clk 0:00:06]} 62. Bxg8 {[%clk 0:00:04]}  Rxg8 {[%clk 0:00:06]} 63. a8=Q {[%clk 0:00:04]}  Rxa8 {[%clk 0:00:06]} 64. Rxa8 {[%clk 0:00:05]}  Qf6 {[%clk 0:00:05]} 65. Ng3 {[%clk 0:00:05]}  Qf4 {[%clk 0:00:05]} 66. Kh1 {[%clk 0:00:04]}  h4 {[%clk 0:00:05]} 67. Nf1 {[%clk 0:00:04]}  Qc1 {[%clk 0:00:06]} 68. Ra2 {[%clk 0:00:03]}  g5 {[%clk 0:00:05]} 69. Qd2 {[%clk 0:00:04]}  Qxf1+ {[%clk 0:00:04]} 70. Kh2 {[%clk 0:00:04]}  Qb1 {[%clk 0:00:03]} 71. Ra6 {[%clk 0:00:04]}  Kh5 {[%clk 0:00:02]} 72. Rxd6 {[%clk 0:00:04]}  Qxb3 {[%clk 0:00:00]} 73. Rd5 {[%clk 0:00:04]} 1-0


[Site "https://www.chess.com"]